[Event "Titled Tuesday Blitz July 13 2021"]
[White "Trent, Lawrence"]
[Black "Nguyen, Ngoc Truong Son"]
[WhiteFideId "408638"]
[BlackFideId "12401110"]
[WhiteElo "2474"]
[BlackElo "2596"]
[Result "1/2-1/2"]
[Round "02"]
[TimeControl "180+1"]
[Date "2021.07.13"]
[WhiteClock "0:00:34"]
[BlackClock "0:00:05"]

1. e4 {[%clk 0:03:00]}  c5 {[%clk 0:02:58]} 2. Nc3 {[%clk 0:03:00]}  Nc6 {[%clk 0:02:57]} 3. Bb5 {[%clk 0:03:00]}  Nd4 {[%clk 0:02:54]} 4. Nf3 {[%clk 0:03:00]}  Nxb5 {[%clk 0:02:53]} 5. Nxb5 {[%clk 0:02:59]}  d6 {[%clk 0:02:50]} 6. O-O {[%clk 0:02:59]}  a6 {[%clk 0:02:49]} 7. Nc3 {[%clk 0:02:59]}  e5 {[%clk 0:02:48]} 8. d3 {[%clk 0:02:59]}  Nf6 {[%clk 0:02:43]} 9. a4 {[%clk 0:02:56]}  Be7 {[%clk 0:02:39]} 10. Nd2 {[%clk 0:02:56]}  O-O {[%clk 0:02:38]} 11. Nc4 {[%clk 0:02:56]}  Be6 {[%clk 0:02:35]} 12. Bg5 {[%clk 0:02:56]}  Nd7 {[%clk 0:02:30]} 13. Bxe7 {[%clk 0:02:55]}  Qxe7 {[%clk 0:02:31]} 14. Qd2 {[%clk 0:02:52]}  f5 {[%clk 0:02:21]} 15. exf5 {[%clk 0:02:51]}  Rxf5 {[%clk 0:02:21]} 16. f4 {[%clk 0:02:47]}  Raf8 {[%clk 0:02:15]} 17. fxe5 {[%clk 0:02:24]}  Rxf1+ {[%clk 0:02:15]} 18. Rxf1 {[%clk 0:02:25]}  Rxf1+ {[%clk 0:02:15]} 19. Kxf1 {[%clk 0:02:26]}  d5 {[%clk 0:02:16]} 20. Na3 {[%clk 0:02:17]}  Nxe5 {[%clk 0:02:10]} 21. h3 {[%clk 0:02:02]}  Nc6 {[%clk 0:01:59]} 22. Qf4 {[%clk 0:01:57]}  Qf7 {[%clk 0:01:51]} 23. Qxf7+ {[%clk 0:01:56]}  Kxf7 {[%clk 0:01:52]} 24. Ne2 {[%clk 0:01:52]}  d4 {[%clk 0:01:41]} 25. Nf4 {[%clk 0:01:41]}  g5 {[%clk 0:01:33]} 26. Nxe6 {[%clk 0:01:36]}  Kxe6 {[%clk 0:01:34]} 27. Ke2 {[%clk 0:01:35]}  h5 {[%clk 0:01:30]} 28. Kf3 {[%clk 0:01:33]}  Kf5 {[%clk 0:01:19]} 29. Nc4 {[%clk 0:01:32]}  Ne5+ {[%clk 0:00:58]} 30. Nxe5 {[%clk 0:01:32]}  Kxe5 {[%clk 0:00:59]} 31. g4 {[%clk 0:01:19]}  h4 {[%clk 0:00:57]} 32. a5 {[%clk 0:01:17]}  Kd5 {[%clk 0:00:57]} 33. b3 {[%clk 0:01:08]}  Ke5 {[%clk 0:00:57]} 34. Ke2 {[%clk 0:01:07]}  Kd6 {[%clk 0:00:51]} 35. Kf3 {[%clk 0:01:05]}  Kd5 {[%clk 0:00:52]} 36. Kf2 {[%clk 0:01:02]}  Kc6 {[%clk 0:00:42]} 37. Kf3 {[%clk 0:01:02]}  Kd5 {[%clk 0:00:28]} 38. Kf2 {[%clk 0:01:01]}  Kc6 {[%clk 0:00:24]} 39. Kf3 {[%clk 0:01:01]}  Kb5 {[%clk 0:00:24]} 40. Ke4 {[%clk 0:01:01]}  Kxa5 {[%clk 0:00:24]} 41. Kf5 {[%clk 0:01:02]}  Kb4 {[%clk 0:00:25]} 42. Kxg5 {[%clk 0:01:01]}  b5 {[%clk 0:00:25]} 43. Kxh4 {[%clk 0:00:51]}  a5 {[%clk 0:00:26]} 44. g5 {[%clk 0:00:51]}  a4 {[%clk 0:00:25]} 45. bxa4 {[%clk 0:00:51]}  bxa4 {[%clk 0:00:25]} 46. g6 {[%clk 0:00:51]}  a3 {[%clk 0:00:26]} 47. g7 {[%clk 0:00:51]}  a2 {[%clk 0:00:26]} 48. g8=Q {[%clk 0:00:52]}  a1=Q {[%clk 0:00:26]} 49. Qb3+ {[%clk 0:00:48]}  Ka5 {[%clk 0:00:26]} 50. Kg4 {[%clk 0:00:32]}  Qg1+ {[%clk 0:00:26]} 51. Kf5 {[%clk 0:00:32]}  Qf1+ {[%clk 0:00:24]} 52. Ke5 {[%clk 0:00:32]}  Qxh3 {[%clk 0:00:24]} 53. Kd5 {[%clk 0:00:32]}  Qf5+ {[%clk 0:00:17]} 54. Kc6 {[%clk 0:00:31]}  Qf6+ {[%clk 0:00:13]} 55. Kxc5 {[%clk 0:00:29]}  Ka6 {[%clk 0:00:08]} 56. Qc4+ {[%clk 0:00:26]}  Kb7 {[%clk 0:00:07]} 57. Qd5+ {[%clk 0:00:25]}  Kc7 {[%clk 0:00:07]} 58. Qxd4 {[%clk 0:00:24]}  Qc6+ {[%clk 0:00:07]} 59. Kb4 {[%clk 0:00:23]}  Qxc2 {[%clk 0:00:05]} 60. Qc4+ {[%clk 0:00:24]}  Qxc4+ {[%clk 0:00:05]} 61. Kxc4 {[%clk 0:00:21]}  Kc6 {[%clk 0:00:06]} 62. Kd4 {[%clk 0:00:22]}  Kd6 {[%clk 0:00:06]} 63. Kc4 {[%clk 0:00:23]}  Kc6 {[%clk 0:00:06]} 64. Kd4 {[%clk 0:00:24]}  Kd6 {[%clk 0:00:07]} 65. Ke4 {[%clk 0:00:25]}  Ke6 {[%clk 0:00:07]} 66. Ke3 {[%clk 0:00:25]}  Ke5 {[%clk 0:00:06]} 67. Ke2 {[%clk 0:00:25]}  Kd5 {[%clk 0:00:04]} 68. Kd2 {[%clk 0:00:26]}  Kd4 {[%clk 0:00:03]} 69. Kc2 {[%clk 0:00:27]}  Kd5 {[%clk 0:00:04]} 70. Kc3 {[%clk 0:00:28]}  Kc5 {[%clk 0:00:04]} 71. d4+ {[%clk 0:00:28]}  Kd5 {[%clk 0:00:04]} 72. Kd3 {[%clk 0:00:29]}  Kd6 {[%clk 0:00:05]} 73. Ke4 {[%clk 0:00:30]}  Ke6 {[%clk 0:00:05]} 74. Ke3 {[%clk 0:00:31]}  Kd5 {[%clk 0:00:05]} 75. Kd3 {[%clk 0:00:32]}  Kd6 {[%clk 0:00:05]} 76. Kc3 {[%clk 0:00:33]}  Kd5 {[%clk 0:00:05]} 77. Kd3 {[%clk 0:00:34]} 1/2-1/2


[Site "https://www.chess.com"]

[Event "Titled Tuesday Blitz July 13 2021"]
[White "Weetik, Vjacheslav"]
[Black "Slovak_fighter2000"]
[WhiteFideId "4153472"]
[WhiteElo "2469"]
[BlackElo "2492"]
[Result "0-1"]
[Round "02"]
[TimeControl "180+1"]
[Date "2021.07.13"]
[WhiteClock "0:00:04"]
[BlackClock "0:00:13"]

1. d4 {[%clk 0:03:00]}  Nf6 {[%clk 0:03:00]} 2. Bf4 {[%clk 0:03:00]}  d5 {[%clk 0:02:59]} 3. e3 {[%clk 0:03:00]}  e6 {[%clk 0:02:59]} 4. Nd2 {[%clk 0:03:00]}  c5 {[%clk 0:03:00]} 5. c3 {[%clk 0:03:00]}  Bd6 {[%clk 0:03:00]} 6. Bxd6 {[%clk 0:03:00]}  Qxd6 {[%clk 0:03:00]} 7. Bd3 {[%clk 0:03:00]}  Nc6 {[%clk 0:03:00]} 8. f4 {[%clk 0:03:00]}  cxd4 {[%clk 0:02:52]} 9. cxd4 {[%clk 0:03:00]}  O-O {[%clk 0:02:52]} 10. Ngf3 {[%clk 0:03:00]}  Bd7 {[%clk 0:02:51]} 11. a3 {[%clk 0:02:54]}  Ne7 {[%clk 0:02:44]} 12. Ne5 {[%clk 0:02:36]}  Qb6 {[%clk 0:02:43]} 13. Qe2 {[%clk 0:02:14]}  a6 {[%clk 0:02:38]} 14. a4 {[%clk 0:02:14]}  a5 {[%clk 0:02:32]} 15. O-O {[%clk 0:02:11]}  Rac8 {[%clk 0:02:23]} 16. g4 {[%clk 0:01:46]}  Bc6 {[%clk 0:02:17]} 17. b3 {[%clk 0:00:49]}  Ne4 {[%clk 0:02:13]} 18. Bxe4 {[%clk 0:00:39]}  dxe4 {[%clk 0:02:14]} 19. Ndc4 {[%clk 0:00:30]}  Qb4 {[%clk 0:02:11]} 20. f5 {[%clk 0:00:25]}  exf5 {[%clk 0:02:01]} 21. gxf5 {[%clk 0:00:25]}  Nd5 {[%clk 0:01:50]} 22. f6 {[%clk 0:00:19]}  Nxf6 {[%clk 0:01:44]} 23. Rxf6 {[%clk 0:00:19]}  gxf6 {[%clk 0:01:45]} 24. Ng4 {[%clk 0:00:18]}  Qe7 {[%clk 0:01:35]} 25. Rf1 {[%clk 0:00:15]}  Kh8 {[%clk 0:01:10]} 26. Nxf6 {[%clk 0:00:16]}  Rg8+ {[%clk 0:01:01]} 27. Nxg8 {[%clk 0:00:15]}  Rxg8+ {[%clk 0:01:02]} 28. Kh1 {[%clk 0:00:16]}  Qe6 {[%clk 0:00:48]} 29. Qh5 {[%clk 0:00:13]}  Bd5 {[%clk 0:00:36]} 30. Ne5 {[%clk 0:00:13]}  f6 {[%clk 0:00:28]} 31. Nc4 {[%clk 0:00:05]}  Bxc4 {[%clk 0:00:25]} 32. bxc4 {[%clk 0:00:05]}  Qxc4 {[%clk 0:00:26]} 33. Qf5 {[%clk 0:00:05]}  Rg6 {[%clk 0:00:18]} 34. d5 {[%clk 0:00:04]}  Qd3 {[%clk 0:00:13]} 0-1


[Site "https://www.chess.com"]

[Event "Titled Tuesday Blitz July 13 2021"]
[White "Yeletsky, Ivan"]
[Black "Baskin, Robert"]
[WhiteFideId "24180327"]
[BlackFideId "24662402"]
[WhiteElo "2344"]
[BlackElo "2462"]
[Result "1/2-1/2"]
[Round "02"]
[TimeControl "180+1"]
[Date "2021.07.13"]
[WhiteClock "0:00:09"]
[BlackClock "0:00:02"]

1. c4 {[%clk 0:03:00]}  e5 {[%clk 0:02:54]} 2. g3 {[%clk 0:03:00]}  Nf6 {[%clk 0:02:53]} 3. Bg2 {[%clk 0:03:00]}  Nc6 {[%clk 0:02:53]} 4. Nc3 {[%clk 0:02:59]}  Bb4 {[%clk 0:02:54]} 5. Nd5 {[%clk 0:02:59]}  Bc5 {[%clk 0:02:32]} 6. d3 {[%clk 0:02:58]}  h6 {[%clk 0:02:26]} 7. Nf3 {[%clk 0:02:51]}  d6 {[%clk 0:02:19]} 8. Nxf6+ {[%clk 0:02:51]}  Qxf6 {[%clk 0:02:16]} 9. O-O {[%clk 0:02:51]}  O-O {[%clk 0:02:15]} 10. Nd2 {[%clk 0:02:52]}  Qd8 {[%clk 0:02:09]} 11. Ne4 {[%clk 0:02:53]}  Bb6 {[%clk 0:02:09]} 12. Nc3 {[%clk 0:02:53]}  a6 {[%clk 0:02:06]} 13. Nd5 {[%clk 0:02:36]}  Ba7 {[%clk 0:02:04]} 14. Be3 {[%clk 0:02:36]}  Bxe3 {[%clk 0:01:55]} 15. Nxe3 {[%clk 0:02:36]}  Be6 {[%clk 0:01:52]} 16. b4 {[%clk 0:02:29]}  Qc8 {[%clk 0:01:42]} 17. Rb1 {[%clk 0:02:25]}  Bh3 {[%clk 0:01:40]} 18. Nd5 {[%clk 0:02:21]}  Bxg2 {[%clk 0:01:38]} 19. Kxg2 {[%clk 0:02:22]}  Qd7 {[%clk 0:01:37]} 20. e3 {[%clk 0:02:07]}  Ne7 {[%clk 0:01:35]} 21. Nc3 {[%clk 0:01:35]}  d5 {[%clk 0:01:11]} 22. Qf3 {[%clk 0:01:29]}  Rad8 {[%clk 0:01:06]} 23. Rbc1 {[%clk 0:01:23]}  c6 {[%clk 0:00:59]} 24. a4 {[%clk 0:01:21]}  f5 {[%clk 0:00:54]} 25. b5 {[%clk 0:01:15]}  axb5 {[%clk 0:00:41]} 26. axb5 {[%clk 0:01:15]}  e4 {[%clk 0:00:39]} 27. Qe2 {[%clk 0:01:15]}  Ng6 {[%clk 0:00:30]} 28. bxc6 {[%clk 0:01:10]}  bxc6 {[%clk 0:00:18]} 29. cxd5 {[%clk 0:01:07]}  cxd5 {[%clk 0:00:19]} 30. Rfd1 {[%clk 0:00:55]}  Qe6 {[%clk 0:00:19]} 31. Nb5 {[%clk 0:00:44]}  Ne5 {[%clk 0:00:18]} 32. dxe4 {[%clk 0:00:43]}  fxe4 {[%clk 0:00:16]} 33. Nd4 {[%clk 0:00:34]}  Qf7 {[%clk 0:00:13]} 34. Rd2 {[%clk 0:00:30]}  Nf3 {[%clk 0:00:12]} 35. Rdd1 {[%clk 0:00:30]}  Qh5 {[%clk 0:00:11]} 36. h3 {[%clk 0:00:30]}  Rd6 {[%clk 0:00:09]} 37. Rc6 {[%clk 0:00:20]}  Rxc6 {[%clk 0:00:05]} 38. Nxc6 {[%clk 0:00:20]}  Nh4+ {[%clk 0:00:02]} 39. Kf1 {[%clk 0:00:21]}  Nf3 {[%clk 0:00:02]} 40. Kg2 {[%clk 0:00:21]}  Nh4+ {[%clk 0:00:02]} 41. Kf1 {[%clk 0:00:20]}  Nf3 {[%clk 0:00:02]} 42. Kg2 {[%clk 0:00:09]} 1/2-1/2


[Site "https://www.chess.com"]

[Event "Titled Tuesday Blitz July 13 2021"]
[White "Zhigalko, Sergei"]
[Black "Dowgird, Filip"]
[WhiteFideId "13502956"]
[BlackFideId "1121235"]
[WhiteElo "2662"]
[BlackElo "2209"]
[Result "1-0"]
[Round "02"]
[TimeControl "180+1"]
[Date "2021.07.13"]
[WhiteClock "0:01:16"]
[BlackClock "0:02:07"]

1. e4 {[%clk 0:03:00]}  e6 {[%clk 0:02:59]} 2. d4 {[%clk 0:02:56]}  d5 {[%clk 0:03:00]} 3. e5 {[%clk 0:02:56]}  c5 {[%clk 0:03:00]} 4. c3 {[%clk 0:02:57]}  Bd7 {[%clk 0:03:00]} 5. Nf3 {[%clk 0:02:57]}  Qb6 {[%clk 0:03:01]} 6. Be2 {[%clk 0:02:57]}  Bb5 {[%clk 0:02:59]} 7. Bxb5+ {[%clk 0:02:57]}  Qxb5 {[%clk 0:02:59]} 8. a4 {[%clk 0:02:58]}  Qa6 {[%clk 0:02:59]} 9. dxc5 {[%clk 0:02:53]}  Bxc5 {[%clk 0:02:59]} 10. b4 {[%clk 0:02:53]}  Be7 {[%clk 0:02:58]} 11. Na3 {[%clk 0:02:54]}  Qc6 {[%clk 0:02:50]} 12. O-O {[%clk 0:02:52]}  a6 {[%clk 0:02:47]} 13. Qb3 {[%clk 0:02:38]}  Nd7 {[%clk 0:02:43]} 14. c4 {[%clk 0:02:14]}  Rc8 {[%clk 0:02:28]} 15. b5 {[%clk 0:02:03]}  Qc5 {[%clk 0:02:18]} 16. cxd5 {[%clk 0:01:24]}  Qxd5 {[%clk 0:02:18]} 17. Qxd5 {[%clk 0:01:24]}  exd5 {[%clk 0:02:18]} 18. Rd1 {[%clk 0:01:25]}  Nh6 {[%clk 0:02:08]} 19. Rxd5 {[%clk 0:01:18]}  Rxc1+ {[%clk 0:02:07]} 20. Rxc1 {[%clk 0:01:17]}  Bxa3 {[%clk 0:02:07]} 21. Rc8+ {[%clk 0:01:16]} 1-0


[Site "https://www.chess.com"]

[Event "Titled Tuesday Blitz July 13 2021"]
[White "Zubov, Alexander"]
[Black "Bazarov, Konstantin"]
[WhiteFideId "14109409"]
[BlackFideId "4137000"]
[WhiteElo "2740"]
[BlackElo "2190"]
[Result "1-0"]
[Round "02"]
[TimeControl "180+1"]
[Date "2021.07.13"]
[WhiteClock "0:00:19"]
[BlackClock "0:00:16"]

1. d4 {[%clk 0:03:00]}  d5 {[%clk 0:02:57]} 2. c4 {[%clk 0:03:00]}  c6 {[%clk 0:02:57]} 3. Nf3 {[%clk 0:02:59]}  Nf6 {[%clk 0:02:57]} 4. Qb3 {[%clk 0:02:58]}  dxc4 {[%clk 0:02:55]} 5. Qxc4 {[%clk 0:02:58]}  Bf5 {[%clk 0:02:55]} 6. g3 {[%clk 0:02:58]}  e6 {[%clk 0:02:55]} 7. Bg2 {[%clk 0:02:57]}  Nbd7 {[%clk 0:02:53]} 8. O-O {[%clk 0:02:57]}  Be7 {[%clk 0:02:51]} 9. Nc3 {[%clk 0:02:54]}  O-O {[%clk 0:02:45]} 10. Qb3 {[%clk 0:02:53]}  Qb6 {[%clk 0:02:44]} 11. Nd2 {[%clk 0:02:53]}  Qxb3 {[%clk 0:02:35]} 12. axb3 {[%clk 0:02:38]}  Nb6 {[%clk 0:02:28]} 13. Nc4 {[%clk 0:02:36]}  Nxc4 {[%clk 0:02:18]} 14. bxc4 {[%clk 0:02:36]}  Rfd8 {[%clk 0:02:19]} 15. e4 {[%clk 0:02:22]}  Bg6 {[%clk 0:02:17]} 16. Rd1 {[%clk 0:02:11]}  h6 {[%clk 0:02:14]} 17. h3 {[%clk 0:01:37]}  Bb4 {[%clk 0:02:12]} 18. e5 {[%clk 0:01:34]}  Nd7 {[%clk 0:02:10]} 19. Be3 {[%clk 0:01:33]}  Nb6 {[%clk 0:02:04]} 20. Bf1 {[%clk 0:01:28]}  Be7 {[%clk 0:01:58]} 21. Rd2 {[%clk 0:01:25]}  f6 {[%clk 0:01:53]} 22. f4 {[%clk 0:01:21]}  Kf7 {[%clk 0:01:51]} 23. Be2 {[%clk 0:01:12]}  Ke8 {[%clk 0:01:48]} 24. Kf2 {[%clk 0:01:12]}  Bb4 {[%clk 0:01:43]} 25. Rdd1 {[%clk 0:01:03]}  Bc2 {[%clk 0:01:41]} 26. Rdc1 {[%clk 0:01:03]}  Bg6 {[%clk 0:01:33]} 27. g4 {[%clk 0:01:00]}  fxe5 {[%clk 0:01:29]} 28. fxe5 {[%clk 0:01:00]}  Ke7 {[%clk 0:01:27]} 29. h4 {[%clk 0:00:58]}  Rf8+ {[%clk 0:01:26]} 30. Kg3 {[%clk 0:00:58]}  Nd7 {[%clk 0:01:20]} 31. Bf3 {[%clk 0:00:53]}  a5 {[%clk 0:01:17]} 32. Ne4 {[%clk 0:00:48]}  Bh7 {[%clk 0:01:05]} 33. h5 {[%clk 0:00:43]}  Rf7 {[%clk 0:01:00]} 34. g5 {[%clk 0:00:42]}  Raf8 {[%clk 0:00:47]} 35. Bg2 {[%clk 0:00:41]}  Rf5 {[%clk 0:00:40]} 36. g6 {[%clk 0:00:37]}  Bg8 {[%clk 0:00:37]} 37. Rh1 {[%clk 0:00:36]}  c5 {[%clk 0:00:35]} 38. Nd6 {[%clk 0:00:33]}  cxd4 {[%clk 0:00:31]} 39. Nxf5+ {[%clk 0:00:33]}  Rxf5 {[%clk 0:00:30]} 40. Bxd4 {[%clk 0:00:33]}  Nxe5 {[%clk 0:00:28]} 41. Bxb7 {[%clk 0:00:28]}  Rg5+ {[%clk 0:00:26]} 42. Kf2 {[%clk 0:00:26]}  Nxc4 {[%clk 0:00:20]} 43. Bxg7 {[%clk 0:00:23]}  Rf5+ {[%clk 0:00:20]} 44. Ke2 {[%clk 0:00:21]}  e5 {[%clk 0:00:19]} 45. Raf1 {[%clk 0:00:19]}  Rg5 {[%clk 0:00:18]} 46. Bf6+ {[%clk 0:00:19]}  Kd6 {[%clk 0:00:16]} 47. Bxg5 {[%clk 0:00:19]} 1-0


[Site "https://www.chess.com"]

[Event "Titled Tuesday Blitz July 13 2021"]
[White "Alavkin, Arseny"]
[Black "Nabaty, Tamir"]
[WhiteFideId "4120612"]
[BlackFideId "2809052"]
[WhiteElo "2401"]
[BlackElo "2627"]
[Result "0-1"]
[Round "03"]
[TimeControl "180+1"]
[Date "2021.07.13"]
[WhiteClock "0:01:40"]
[BlackClock "0:01:43"]

1. e4 {[%clk 0:03:00]}  c5 {[%clk 0:02:58]} 2. Nc3 {[%clk 0:03:01]}  e6 {[%clk 0:02:59]} 3. Nge2 {[%clk 0:03:01]}  Nc6 {[%clk 0:02:59]} 4. d4 {[%clk 0:03:01]}  cxd4 {[%clk 0:03:00]} 5. Nxd4 {[%clk 0:03:01]}  Qc7 {[%clk 0:03:01]} 6. Be3 {[%clk 0:03:00]}  a6 {[%clk 0:03:01]} 7. f4 {[%clk 0:02:53]}  b5 {[%clk 0:03:01]} 8. a3 {[%clk 0:02:51]}  Bb7 {[%clk 0:03:01]} 9. Bd3 {[%clk 0:02:51]}  Nxd4 {[%clk 0:02:52]} 10. Bxd4 {[%clk 0:02:52]}  Qxf4 {[%clk 0:02:52]} 11. Qf3 {[%clk 0:02:53]}  Qxf3 {[%clk 0:02:50]} 12. gxf3 {[%clk 0:02:53]}  Ne7 {[%clk 0:02:50]} 13. O-O-O {[%clk 0:02:53]}  Nc6 {[%clk 0:02:50]} 14. Be3 {[%clk 0:02:53]}  Be7 {[%clk 0:02:45]} 15. Rhg1 {[%clk 0:02:48]}  g6 {[%clk 0:02:45]} 16. Be2 {[%clk 0:02:45]}  Rc8 {[%clk 0:02:44]} 17. Kb1 {[%clk 0:02:45]}  Ne5 {[%clk 0:02:44]} 18. f4 {[%clk 0:02:39]}  Nc4 {[%clk 0:02:40]} 19. Bxc4 {[%clk 0:02:39]}  Rxc4 {[%clk 0:02:41]} 20. Rd4 {[%clk 0:02:39]}  Rxd4 {[%clk 0:02:36]} 21. Bxd4 {[%clk 0:02:40]}  f6 {[%clk 0:02:37]} 22. Re1 {[%clk 0:02:36]}  Kf7 {[%clk 0:02:37]} 23. Re2 {[%clk 0:02:29]}  d6 {[%clk 0:02:36]} 24. b3 {[%clk 0:02:28]}  Rc8 {[%clk 0:02:35]} 25. Kb2 {[%clk 0:02:28]}  e5 {[%clk 0:02:35]} 26. Be3 {[%clk 0:02:28]}  f5 {[%clk 0:02:34]} 27. exf5 {[%clk 0:02:24]}  gxf5 {[%clk 0:02:33]} 28. Rd2 {[%clk 0:02:16]}  Ke6 {[%clk 0:02:31]} 29. Na2 {[%clk 0:02:14]}  Bf6 {[%clk 0:02:30]} 30. Kb1 {[%clk 0:02:14]}  Be4 {[%clk 0:02:23]} 31. h3 {[%clk 0:02:09]}  d5 {[%clk 0:02:22]} 32. Nb4 {[%clk 0:02:05]}  d4 {[%clk 0:02:11]} 33. Bf2 {[%clk 0:02:01]}  Rc3 {[%clk 0:01:59]} 34. fxe5 {[%clk 0:01:59]}  Bxe5 {[%clk 0:01:56]} 35. Bxd4 {[%clk 0:01:48]}  Rxb3+ {[%clk 0:01:55]} 36. Ka2 {[%clk 0:01:47]}  Rxh3 {[%clk 0:01:54]} 37. Nxa6 {[%clk 0:01:46]}  Bxd4 {[%clk 0:01:50]} 38. Rxd4 {[%clk 0:01:46]}  Rc3 {[%clk 0:01:50]} 39. Rb4 {[%clk 0:01:39]}  Rxc2+ {[%clk 0:01:43]} 40. Kb3 {[%clk 0:01:40]}  Rc6 {[%clk 0:01:43]} 0-1


[Site "https://www.chess.com"]

[Event "Titled Tuesday Blitz July 13 2021"]
[White "Altman, Joshua"]
[Black "Maiorov, Nikita"]
[WhiteFideId "426210"]
[BlackFideId "13501720"]
[WhiteElo "1945"]
[BlackElo "2440"]
[Result "0-1"]
[Round "03"]
[TimeControl "180+1"]
[Date "2021.07.13"]
[WhiteClock "0:00:01"]
[BlackClock "0:00:15"]

1. d4 {[%clk 0:03:00]}  Nf6 {[%clk 0:02:56]} 2. c4 {[%clk 0:03:01]}  e6 {[%clk 0:02:55]} 3. Nf3 {[%clk 0:03:01]}  b6 {[%clk 0:02:55]} 4. g3 {[%clk 0:03:01]}  Bb7 {[%clk 0:02:54]} 5. Bg2 {[%clk 0:03:01]}  Be7 {[%clk 0:02:54]} 6. O-O {[%clk 0:03:01]}  O-O {[%clk 0:02:55]} 7. Nc3 {[%clk 0:03:02]}  Ne4 {[%clk 0:02:55]} 8. Bd2 {[%clk 0:03:02]}  Bf6 {[%clk 0:02:51]} 9. Qc2 {[%clk 0:03:00]}  Nxd2 {[%clk 0:02:50]} 10. Qxd2 {[%clk 0:03:00]}  d6 {[%clk 0:02:50]} 11. e4 {[%clk 0:02:59]}  Nd7 {[%clk 0:02:50]} 12. Rad1 {[%clk 0:02:58]}  g6 {[%clk 0:02:49]} 13. Rfe1 {[%clk 0:02:52]}  Bg7 {[%clk 0:02:49]} 14. e5 {[%clk 0:02:45]}  a6 {[%clk 0:02:32]} 15. exd6 {[%clk 0:02:41]}  cxd6 {[%clk 0:02:32]} 16. b3 {[%clk 0:02:23]}  Nf6 {[%clk 0:02:30]} 17. d5 {[%clk 0:02:18]}  e5 {[%clk 0:02:29]} 18. Ng5 {[%clk 0:02:18]}  Bc8 {[%clk 0:02:23]} 19. Rc1 {[%clk 0:02:09]}  Bh6 {[%clk 0:02:22]} 20. h4 {[%clk 0:01:55]}  Ne8 {[%clk 0:02:17]} 21. Qe2 {[%clk 0:01:41]}  Bxg5 {[%clk 0:02:15]} 22. hxg5 {[%clk 0:01:42]}  Qxg5 {[%clk 0:02:15]} 23. Ne4 {[%clk 0:01:42]}  Qd8 {[%clk 0:02:15]} 24. Qd2 {[%clk 0:01:31]}  a5 {[%clk 0:02:13]} 25. a3 {[%clk 0:01:30]}  Bf5 {[%clk 0:02:13]} 26. Nc3 {[%clk 0:01:26]}  Bd7 {[%clk 0:02:09]} 27. b4 {[%clk 0:01:25]}  axb4 {[%clk 0:02:07]} 28. axb4 {[%clk 0:01:26]}  Qc7 {[%clk 0:02:06]} 29. Ne4 {[%clk 0:01:25]}  f5 {[%clk 0:02:05]} 30. Ng5 {[%clk 0:01:25]}  Rd8 {[%clk 0:01:53]} 31. c5 {[%clk 0:01:18]}  bxc5 {[%clk 0:01:52]} 32. bxc5 {[%clk 0:01:17]}  dxc5 {[%clk 0:01:52]} 33. Qa2 {[%clk 0:01:13]}  Qd6 {[%clk 0:01:51]} 34. Ne6 {[%clk 0:01:09]}  Bxe6 {[%clk 0:01:48]} 35. dxe6 {[%clk 0:01:09]}  Kg7 {[%clk 0:01:42]} 36. Qa7+ {[%clk 0:00:55]}  Nc7 {[%clk 0:01:41]} 37. Rxc5 {[%clk 0:00:52]}  Rc8 {[%clk 0:01:40]} 38. Rec1 {[%clk 0:00:49]}  Qxe6 {[%clk 0:01:24]} 39. Rxc7+ {[%clk 0:00:49]}  Rxc7 {[%clk 0:01:24]} 40. Rxc7+ {[%clk 0:00:48]}  Rf7 {[%clk 0:01:20]} 41. Rxf7+ {[%clk 0:00:44]}  Qxf7 {[%clk 0:01:20]} 42. Qxf7+ {[%clk 0:00:37]}  Kxf7 {[%clk 0:01:19]} 43. Bd5+ {[%clk 0:00:38]}  Kf6 {[%clk 0:01:19]} 44. Kg2 {[%clk 0:00:38]}  h6 {[%clk 0:01:17]} 45. Kf3 {[%clk 0:00:37]}  e4+ {[%clk 0:01:15]} 46. Ke3 {[%clk 0:00:36]}  Kg5 {[%clk 0:01:08]} 47. Bf7 {[%clk 0:00:35]}  h5 {[%clk 0:01:07]} 48. Kd4 {[%clk 0:00:34]}  f4 {[%clk 0:00:59]} 49. Kxe4 {[%clk 0:00:21]}  fxg3 {[%clk 0:00:58]} 50. f4+ {[%clk 0:00:10]}  Kg4 {[%clk 0:00:57]} 51. Be6+ {[%clk 0:00:10]}  Kh4 {[%clk 0:00:53]} 52. Kf3 {[%clk 0:00:10]}  g5 {[%clk 0:00:41]} 53. f5 {[%clk 0:00:11]}  Kh3 {[%clk 0:00:41]} 54. f6+ {[%clk 0:00:11]}  Kh2 {[%clk 0:00:41]} 55. f7 {[%clk 0:00:07]}  g2 {[%clk 0:00:41]} 56. f8=Q {[%clk 0:00:06]}  g4+ {[%clk 0:00:33]} 57. Ke4 {[%clk 0:00:04]}  g1=Q {[%clk 0:00:32]} 58. Qd6+ {[%clk 0:00:03]}  Kh3 {[%clk 0:00:29]} 59. Qd3+ {[%clk 0:00:02]}  Qg3 {[%clk 0:00:28]} 60. Qf1+ {[%clk 0:00:02]}  Kh2 {[%clk 0:00:26]} 61. Qe2+ {[%clk 0:00:02]}  Qg2+ {[%clk 0:00:22]} 62. Qxg2+ {[%clk 0:00:02]}  Kxg2 {[%clk 0:00:21]} 63. Kf4 {[%clk 0:00:03]}  g3 {[%clk 0:00:19]} 64. Bf7 {[%clk 0:00:03]}  Kh2 {[%clk 0:00:16]} 65. Bd5 {[%clk 0:00:03]}  h4 {[%clk 0:00:15]} 66. Bf3 {[%clk 0:00:04]}  h3 {[%clk 0:00:15]} 67. Ke3 {[%clk 0:00:01]}  g2 {[%clk 0:00:15]} 0-1


[Site "https://www.chess.com"]

[Event "Titled Tuesday Blitz July 13 2021"]
[White "Baskin, Robert"]
[Black "Priasmoro, Novendra"]
[WhiteFideId "24662402"]
[BlackFideId "7105029"]
[WhiteElo "2462"]
[BlackElo "2309"]
[Result "0-1"]
[Round "03"]
[TimeControl "180+1"]
[Date "2021.07.13"]
[WhiteClock "0:00:04"]
[BlackClock "0:01:20"]

1. e4 {[%clk 0:03:00]}  c5 {[%clk 0:02:59]} 2. Nf3 {[%clk 0:02:59]}  Nc6 {[%clk 0:03:00]} 3. Bb5 {[%clk 0:02:45]}  g6 {[%clk 0:03:00]} 4. O-O {[%clk 0:02:43]}  Bg7 {[%clk 0:03:00]} 5. Re1 {[%clk 0:02:43]}  e5 {[%clk 0:02:59]} 6. b4 {[%clk 0:02:43]}  d6 {[%clk 0:02:59]} 7. Bb2 {[%clk 0:02:40]}  cxb4 {[%clk 0:02:55]} 8. d4 {[%clk 0:02:37]}  Bg4 {[%clk 0:02:31]} 9. dxe5 {[%clk 0:02:02]}  Ne7 {[%clk 0:02:31]} 10. Nbd2 {[%clk 0:01:59]}  dxe5 {[%clk 0:02:28]} 11. Nc4 {[%clk 0:01:56]}  Qxd1 {[%clk 0:02:25]} 12. Raxd1 {[%clk 0:01:54]}  O-O {[%clk 0:02:25]} 13. h3 {[%clk 0:01:43]}  Bxf3 {[%clk 0:02:24]} 14. gxf3 {[%clk 0:01:43]}  Rfd8 {[%clk 0:02:23]} 15. Nd6 {[%clk 0:01:39]}  Rab8 {[%clk 0:02:20]} 16. Bc4 {[%clk 0:01:37]}  Rf8 {[%clk 0:02:18]} 17. a3 {[%clk 0:01:18]}  bxa3 {[%clk 0:02:08]} 18. Bxa3 {[%clk 0:01:18]}  a6 {[%clk 0:02:08]} 19. c3 {[%clk 0:01:14]}  b5 {[%clk 0:02:07]} 20. Ba2 {[%clk 0:01:14]}  Bf6 {[%clk 0:02:01]} 21. f4 {[%clk 0:00:41]}  exf4 {[%clk 0:01:56]} 22. e5 {[%clk 0:00:27]}  Nxe5 {[%clk 0:01:56]} 23. Nxf7 {[%clk 0:00:26]}  Nf3+ {[%clk 0:01:46]} 24. Kf1 {[%clk 0:00:23]}  Nxe1 {[%clk 0:01:47]} 25. Rxe1 {[%clk 0:00:13]}  Rxf7 {[%clk 0:01:34]} 26. Bxe7 {[%clk 0:00:13]}  Kg7 {[%clk 0:01:33]} 27. Bxf7 {[%clk 0:00:11]}  Kxf7 {[%clk 0:01:33]} 28. Bd6 {[%clk 0:00:12]}  Rc8 {[%clk 0:01:32]} 29. Ra1 {[%clk 0:00:10]}  Rc6 {[%clk 0:01:32]} 30. Bxf4 {[%clk 0:00:09]}  Bxc3 {[%clk 0:01:32]} 31. Rc1 {[%clk 0:00:09]}  b4 {[%clk 0:01:33]} 32. Ke2 {[%clk 0:00:09]}  a5 {[%clk 0:01:33]} 33. Kd3 {[%clk 0:00:10]}  a4 {[%clk 0:01:34]} 34. Be5 {[%clk 0:00:09]}  a3 {[%clk 0:01:28]} 35. Bxc3 {[%clk 0:00:09]}  a2 {[%clk 0:01:22]} 36. Ra1 {[%clk 0:00:07]}  Rxc3+ {[%clk 0:01:22]} 37. Kd4 {[%clk 0:00:08]}  Rc2 {[%clk 0:01:21]} 38. Kd3 {[%clk 0:00:04]}  b3 {[%clk 0:01:20]} 0-1


[Site "https://www.chess.com"]